[Event "MČR v rapid šachu družstev 2019"]
[Site "Teplice, Czech Republic"]
[Date "2019.09.15"]
[Round "7.13"]
[White "Babicka, Michal"]
[Black "Zeman, Matyas"]
[Result "0-1"]
[TimeControl "15 min. + 5s"]
[WhiteElo "2010"]
[BlackElo "2247"]

1. e4 {[%clk 00:15:08]} {[%emt 00:00:01]} g6 {[%clk 00:15:02]} {[%emt
00:00:09]} 2. d4 {[%clk 00:15:04]} {[%emt 00:00:09]} Bg7 {[%clk 00:15:06]}
{[%emt 00:00:01]} 3. Nf3 {[%clk 00:13:35]} {[%emt 00:01:33]} c6 {[%clk
00:15:08]} {[%emt 00:00:03]} 4. Nc3 {[%clk 00:13:38]} {[%emt 00:00:03]} d5
{[%clk 00:15:12]} {[%emt 00:00:01]} 5. e5 {[%clk 00:13:41]} {[%emt 00:00:02]}
Bg4 {[%clk 00:15:16]} {[%emt 00:00:01]} 6. Be2 {[%clk 00:13:44]} {[%emt
00:00:02]} Nd7 {[%clk 00:15:16]} {[%emt 00:00:04]} 7. O-O {[%clk 00:13:42]}
{[%emt 00:00:06]} Bxf3 {[%clk 00:15:02]} {[%emt 00:00:20]} 8. Bxf3 {[%clk
00:13:45]} {[%emt 00:00:01]} e6 {[%clk 00:15:06]} 9. Be3 {[%clk 00:13:24]}
{[%emt 00:00:28]} Ne7 {[%clk 00:14:37]} {[%emt 00:00:34]} 10. h4 {[%clk
00:13:08]} {[%emt 00:00:20]} h5 {[%clk 00:13:47]} {[%emt 00:00:56]} 11. Bg5
{[%clk 00:13:08]} {[%emt 00:00:05]} Qc7 {[%clk 00:13:51]} 12. Ne2 {[%clk
00:12:59]} {[%emt 00:00:14]} Nf5 {[%clk 00:13:50]} {[%emt 00:00:06]} 13. Rc1
{[%clk 00:12:33]} {[%emt 00:00:31]} Bh6 {[%clk 00:13:36]} {[%emt 00:00:19]} 14.
c4 {[%clk 00:12:06]} {[%emt 00:00:32]} dxc4 {[%clk 00:13:22]} {[%emt 00:00:20]}
15. Rxc4 {[%clk 00:12:05]} {[%emt 00:00:06]} Bxg5 {[%clk 00:13:21]} {[%emt
00:00:06]} 16. hxg5 {[%clk 00:12:09]} Nb6 {[%clk 00:13:20]} {[%emt 00:00:06]}
17. Rc2 {[%clk 00:12:08]} {[%emt 00:00:06]} Rd8 {[%clk 00:12:38]} {[%emt
00:00:47]} 18. Rd2 {[%clk 00:10:11]} {[%emt 00:02:02]} Qe7 {[%clk 00:12:40]}
{[%emt 00:00:04]} 19. Nc3 {[%clk 00:10:04]} {[%emt 00:00:12]} Qxg5 {[%clk
00:12:41]} {[%emt 00:00:04]} 20. Ne4 {[%clk 00:10:08]} {[%emt 00:00:01]} Qe7
{[%clk 00:12:19]} {[%emt 00:00:26]} 21. Nf6+ {[%clk 00:10:09]} {[%emt
00:00:04]} Kf8 {[%clk 00:12:23]} {[%emt 00:00:01]} 22. Be4 {[%clk 00:09:57]}
{[%emt 00:00:17]} Nc4 {[%clk 00:11:04]} {[%emt 00:01:24]} 23. Rc2 {[%clk
00:08:50]} {[%emt 00:01:12]} Nxe5 {[%clk 00:10:50]} {[%emt 00:00:20]} 24. dxe5
{[%clk 00:08:37]} {[%emt 00:00:18]} Rxd1 {[%clk 00:10:54]} {[%emt 00:00:01]} 25.
Rxd1 {[%clk 00:08:41]} Kg7 {[%clk 00:10:34]} {[%emt 00:00:25]} 26. Rd7 {[%clk
00:08:44]} {[%emt 00:00:02]} Qb4 {[%clk 00:10:34]} {[%emt 00:00:04]} 27. a3
{[%clk 00:08:45]} {[%emt 00:00:05]} Qa5 {[%clk 00:09:38]} {[%emt 00:00:59]} 28.
f4 {[%clk 00:08:30]} {[%emt 00:00:22]} Qe1+ {[%clk 00:09:42]} {[%emt 00:00:01]}
29. Kh2 {[%clk 00:08:34]} Qh4+ {[%clk 00:09:46]} {[%emt 00:00:01]} 30. Kg1
{[%clk 00:08:39]} Qxf4 {[%clk 00:09:31]} {[%emt 00:00:21]} 31. Bxf5 {[%clk
00:08:27]} {[%emt 00:00:16]} Qxe5 {[%clk 00:08:02]} {[%emt 00:01:34]} 32. Bd3
{[%clk 00:08:08]} {[%emt 00:00:24]} Qe1+ {[%clk 00:07:15]} {[%emt 00:00:52]} 33.
Bf1 {[%clk 00:08:03]} {[%emt 00:00:11]} Kxf6 {[%clk 00:07:18]} {[%emt
00:00:02]} 34. Rf2+ {[%clk 00:08:06]} {[%emt 00:00:01]} Kg5 {[%clk 00:07:21]}
{[%emt 00:00:02]} 35. Rdxf7 {[%clk 00:08:07]} {[%emt 00:00:05]} Rd8 {[%clk
00:07:10]} {[%emt 00:00:17]} 36. Re2 {[%clk 00:08:09]} {[%emt 00:00:03]} Qc1
{[%clk 00:06:49]} {[%emt 00:00:23]} 37. Re5+ {[%clk 00:08:09]} {[%emt
00:00:08]} Kh6 {[%clk 00:06:40]} {[%emt 00:00:14]} 38. Rxe6 {[%clk 00:08:11]}
{[%emt 00:00:03]} Qc5+ {[%clk 00:05:47]} {[%emt 00:00:58]} 39. Kh2 {[%clk
00:08:06]} {[%emt 00:00:09]} Rd6 {[%clk 00:05:16]} {[%emt 00:00:36]} 40. Ree7
{[%clk 00:08:03]} {[%emt 00:00:09]} Rd4 {[%clk 00:05:04]} {[%emt 00:00:17]} 41.
g3 {[%clk 00:07:09]} {[%emt 00:00:58]} Rd2+ {[%clk 00:04:56]} {[%emt 00:00:13]}
42. Bg2 {[%clk 00:03:53]} {[%emt 00:03:21]} Qd5 {[%clk 00:04:11]} {[%emt
00:00:50]} 0-1

[Event "MČR v rapid šachu družstev 2019"]
[Site "Teplice, Czech Republic"]
[Date "2019.09.15"]
[Round "7.14"]
[White "Svanda, Ondrej"]
[Black "Vales, Vaclav"]
[Result "1-0"]
[TimeControl "15 min. + 5s"]
[WhiteElo "1920"]
[BlackElo "2110"]

1. e4 {[%clk 00:15:09]} c5 {[%clk 00:15:09]} {[%emt 00:00:01]} 2. Nf3 {[%clk
00:15:13]} {[%emt 00:00:01]} Nc6 {[%clk 00:15:13]} 3. Nc3 {[%clk 00:15:17]} e5
{[%clk 00:15:17]} {[%emt 00:00:02]} 4. Bc4 {[%clk 00:15:19]} {[%emt 00:00:03]}
Be7 {[%clk 00:15:19]} {[%emt 00:00:02]} 5. d3 {[%clk 00:15:21]} {[%emt
00:00:04]} d6 {[%clk 00:15:21]} {[%emt 00:00:03]} 6. Nd2 {[%clk 00:15:21]}
{[%emt 00:00:05]} Bg5 {[%clk 00:14:58]} {[%emt 00:00:28]} 7. Nf1 {[%clk
00:15:17]} {[%emt 00:00:09]} h6 {[%clk 00:14:47]} {[%emt 00:00:17]} 8. Ne3
{[%clk 00:15:05]} {[%emt 00:00:16]} Nge7 {[%clk 00:14:12]} {[%emt 00:00:40]} 9.
O-O {[%clk 00:15:01]} {[%emt 00:00:09]} O-O {[%clk 00:14:13]} {[%emt 00:00:04]}
10. Ned5 {[%clk 00:14:31]} {[%emt 00:00:35]} Bxc1 {[%clk 00:14:15]} {[%emt
00:00:03]} 11. Rxc1 {[%clk 00:14:24]} {[%emt 00:00:13]} Nxd5 {[%clk 00:14:12]}
{[%emt 00:00:07]} 12. Nxd5 {[%clk 00:14:11]} {[%emt 00:00:18]} Na5 {[%clk
00:13:56]} {[%emt 00:00:21]} 13. Qd2 {[%clk 00:13:55]} {[%emt 00:00:21]} Rb8
{[%clk 00:13:55]} {[%emt 00:00:07]} 14. a4 {[%clk 00:13:43]} {[%emt 00:00:17]}
a6 {[%clk 00:13:27]} {[%emt 00:00:32]} 15. Ba2 {[%clk 00:13:04]} {[%emt
00:00:44]} b5 {[%clk 00:13:25]} {[%emt 00:00:08]} 16. axb5 {[%clk 00:13:04]}
{[%emt 00:00:05]} Rxb5 {[%clk 00:13:17]} {[%emt 00:00:13]} 17. Rb1 {[%clk
00:12:40]} {[%emt 00:00:29]} Nc6 {[%clk 00:13:15]} {[%emt 00:00:07]} 18. c3
{[%clk 00:12:11]} {[%emt 00:00:34]} Be6 {[%clk 00:13:14]} {[%emt 00:00:06]} 19.
Bc4 {[%clk 00:12:15]} {[%emt 00:00:02]} Ra5 {[%clk 00:12:41]} {[%emt 00:00:38]}
20. b4 {[%clk 00:11:36]} {[%emt 00:00:44]} cxb4 {[%clk 00:12:29]} {[%emt
00:00:17]} 21. cxb4 {[%clk 00:11:41]} Rb5 {[%clk 00:11:38]} {[%emt 00:00:56]}
22. Bxb5 {[%clk 00:11:31]} {[%emt 00:00:15]} axb5 {[%clk 00:11:41]} {[%emt
00:00:01]} 23. Nc3 {[%clk 00:10:46]} {[%emt 00:00:49]} Qb6 {[%clk 00:11:18]}
{[%emt 00:00:28]} 24. Qe3 {[%clk 00:10:00]} {[%emt 00:00:51]} Qb7 {[%clk
00:11:21]} {[%emt 00:00:02]} 25. f4 {[%clk 00:09:03]} {[%emt 00:01:02]} exf4
{[%clk 00:11:01]} {[%emt 00:00:25]} 26. Rxf4 {[%clk 00:08:35]} {[%emt
00:00:32]} Ra8 {[%clk 00:10:32]} {[%emt 00:00:34]} 27. Ne2 {[%clk 00:05:02]}
{[%emt 00:03:39]} Ra3 {[%clk 00:10:22]} {[%emt 00:00:15]} 28. Nc1 {[%clk
00:03:17]} {[%emt 00:01:50]} Ne5 {[%clk 00:09:27]} {[%emt 00:01:00]} 29. Qd4
{[%clk 00:02:52]} {[%emt 00:00:30]} Qc6 {[%clk 00:09:13]} {[%emt 00:00:18]} 30.
Rf1 {[%clk 00:02:20]} {[%emt 00:00:36]} Qc2 {[%clk 00:07:18]} {[%emt 00:02:01]}
31. Rb2 {[%clk 00:02:03]} {[%emt 00:00:23]} Qc7 {[%clk 00:07:13]} {[%emt
00:00:10]} 32. h3 {[%clk 00:01:40]} {[%emt 00:00:29]} Rc3 {[%clk 00:06:22]}
{[%emt 00:00:55]} 33. Rb1 {[%clk 00:01:41]} {[%emt 00:00:04]} Bxh3 {[%clk
00:06:04]} {[%emt 00:00:24]} 34. gxh3 {[%clk 00:01:26]} {[%emt 00:00:20]} Rxc1
{[%clk 00:06:08]} {[%emt 00:00:01]} 35. Rbxc1 {[%clk 00:00:46]} {[%emt
00:00:45]} Qxc1 {[%clk 00:06:08]} 36. Rxc1 {[%clk 00:00:51]} Nf3+ 37. Kf2 Nxd4
{[%clk 00:06:09]} {[%emt 00:00:02]} 38. Ke3 {[%clk 00:00:48]} {[%emt 00:00:08]}
Ne6 {[%clk 00:05:31]} {[%emt 00:00:42]} 39. Rc8+ {[%clk 00:00:45]} {[%emt
00:00:08]} Kh7 {[%clk 00:05:35]} {[%emt 00:00:01]} 40. Rb8 {[%clk 00:00:50]} g5
{[%clk 00:05:37]} {[%emt 00:00:03]} 41. Rxb5 {[%clk 00:00:50]} {[%emt
00:00:05]} Kg6 {[%clk 00:05:32]} {[%emt 00:00:10]} 42. Rd5 {[%clk 00:00:52]}
{[%emt 00:00:03]} h5 {[%clk 00:05:28]} {[%emt 00:00:10]} 43. b5 {[%clk
00:00:50]} {[%emt 00:00:06]} 1-0

[Event "MČR v rapid šachu družstev 2019"]
[Site "Teplice, Czech Republic"]
[Date "2019.09.15"]
[Round "7.15"]
[White "Janda, Zdenek"]
[Black "Skacelik, Petr"]
[Result "1-0"]
[TimeControl "15 min. + 5s"]
[WhiteElo "2008"]
[BlackElo "2096"]

1. d4 {[%emt 00:11:58]} Nf6 {[%emt 00:00:01]} 2. c4 {[%emt 00:00:03]} g6 {[%emt
00:00:01]} 3. Nc3 {[%emt 00:00:02]} Bg7 4. e4 {[%emt 00:00:01]} d6 5. Nf3
{[%emt 00:00:02]} O-O {[%emt 00:00:02]} 6. h3 {[%emt 00:00:01]} Nbd7 7. Be3
{[%emt 00:00:03]} e5 {[%emt 00:00:01]} 8. d5 Nh5 {[%emt 00:00:10]} 9. Nh2
{[%emt 00:00:26]} b6 {[%emt 00:00:14]} 10. Be2 {[%emt 00:00:05]} Nf4 {[%emt
00:00:02]} 11. Bf3 {[%emt 00:00:04]} a5 {[%emt 00:00:08]} 12. g3 {[%emt
00:00:11]} Nxh3 {[%emt 00:00:14]} 13. Ng4 {[%emt 00:00:05]} Ng5 {[%emt
00:00:03]} 14. Bg2 {[%emt 00:00:25]} h5 {[%emt 00:00:10]} 15. Qd2 {[%emt
00:00:19]} f6 {[%emt 00:00:13]} 16. Nh2 {[%emt 00:00:29]} Nc5 {[%emt 00:00:16]}
17. f4 {[%emt 00:00:18]} Nf7 {[%emt 00:00:05]} 18. O-O-O {[%emt 00:00:28]} Bd7
{[%emt 00:00:17]} 19. Bf3 {[%emt 00:00:14]} Re8 {[%emt 00:00:09]} 20. f5 {[%emt
00:00:13]} gxf5 {[%emt 00:00:04]} 21. Bxh5 {[%emt 00:00:03]} Nxe4 {[%emt
00:00:46]} 22. Nxe4 {[%emt 00:00:18]} fxe4 23. Bg6 {[%emt 00:00:15]} f5 {[%emt
00:00:18]} 24. Qe2 {[%emt 00:00:26]} Qf6 {[%emt 00:00:31]} 25. Qh5 {[%emt
00:00:07]} Kf8 {[%emt 00:00:02]} 26. Ng4 {[%emt 00:00:14]} Qe7 {[%emt
00:00:42]} 27. Nh6 {[%emt 00:00:42]} Nxh6 {[%emt 00:00:07]} 28. Bxh6 {[%emt
00:00:07]} Bxh6+ {[%emt 00:00:26]} 29. Qxh6+ {[%emt 00:00:07]} Qg7 30. Bxe8
{[%emt 00:00:24]} Rxe8 {[%emt 00:00:13]} 31. Qe3 {[%emt 00:00:06]} Ke7 {[%emt
00:00:14]} 32. Rh5 {[%emt 00:00:17]} Rg8 {[%emt 00:00:13]} 33. Rdh1 {[%emt
00:00:17]} Qxg3 {[%emt 00:00:41]} 34. Rh7+ {[%emt 00:00:22]} Ke8 {[%emt
00:00:11]} 35. Qxg3 {[%emt 00:00:48]} Rxg3 {[%emt 00:00:01]} 36. Rh8+ {[%emt
00:00:03]} Kf7 37. R1h7+ {[%emt 00:00:04]} Rg7 {[%emt 00:00:01]} 38. Rxg7+
{[%emt 00:00:07]} Kxg7 39. Rd8 {[%emt 00:00:02]} Be6 {[%emt 00:00:33]} 40. dxe6
{[%emt 00:00:05]} Kf6 41. Re8 {[%emt 00:00:05]} e3 {[%emt 00:00:02]} 42. Kd1
{[%emt 00:00:02]} f4 {[%emt 00:00:02]} 43. Ke2 {[%emt 00:00:07]} e4 {[%emt
00:00:01]} 44. Rf8+ {[%emt 00:00:05]} Kxe6 {[%emt 00:00:03]} 45. Rxf4 {[%emt
00:00:01]} Ke5 46. Kxe3 {[%emt 00:00:13]} 1-0

[Event "MČR v rapid šachu družstev 2019"]
[Site "Teplice, Czech Republic"]
[Date "2019.09.15"]
[Round "7.16"]
[White "Vavra, Michal"]
[Black "Havranek, Tomas"]
[Result "1/2-1/2"]
[TimeControl "15 min. + 5s"]
[WhiteElo "2028"]
[BlackElo "2023"]

1. Nf3 {[%clk 00:15:08]} Nf6 {[%clk 00:15:06]} {[%emt 00:00:05]} 2. c4 {[%clk
00:15:09]} {[%emt 00:00:04]} b6 {[%clk 00:14:59]} {[%emt 00:00:13]} 3. g3
{[%clk 00:14:59]} {[%emt 00:00:14]} Bb7 {[%clk 00:15:02]} {[%emt 00:00:02]} 4.
Bg2 {[%clk 00:15:00]} {[%emt 00:00:04]} c5 {[%clk 00:14:43]} {[%emt 00:00:24]}
5. O-O {[%clk 00:15:00]} {[%emt 00:00:05]} e6 {[%clk 00:14:09]} {[%emt
00:00:39]} 6. Nc3 {[%clk 00:14:55]} {[%emt 00:00:09]} Be7 {[%clk 00:14:03]}
{[%emt 00:00:12]} 7. e3 {[%clk 00:14:33]} {[%emt 00:00:26]} O-O {[%clk
00:13:56]} {[%emt 00:00:12]} 8. d4 {[%clk 00:14:34]} {[%emt 00:00:04]} cxd4
{[%clk 00:13:29]} {[%emt 00:00:33]} 9. exd4 {[%clk 00:14:33]} {[%emt 00:00:05]}
d5 {[%clk 00:13:14]} {[%emt 00:00:21]} 10. Ne5 {[%clk 00:14:03]} {[%emt
00:00:34]} Nbd7 {[%clk 00:11:39]} {[%emt 00:01:41]} 11. Bf4 {[%clk 00:12:00]}
{[%emt 00:02:08]} Rc8 {[%clk 00:09:32]} {[%emt 00:02:12]} 12. cxd5 {[%clk
00:08:25]} {[%emt 00:03:39]} Nxd5 {[%clk 00:08:47]} {[%emt 00:00:50]} 13. Nxd5
{[%clk 00:08:08]} {[%emt 00:00:21]} Bxd5 {[%clk 00:08:17]} {[%emt 00:00:36]} 14.
Bxd5 {[%clk 00:08:03]} {[%emt 00:00:10]} 1/2-1/2

[Event "MČR v rapid šachu družstev 2019"]
[Site "Teplice, Czech Republic"]
[Date "2019.09.15"]
[Round "7.17"]
[White "Novotny, Michal"]
[Black "Bujak, Michal"]
[Result "1-0"]
[TimeControl "15 min. + 5s"]
[WhiteElo "2311"]
[BlackElo "2170"]

1. d4 {[%clk 00:15:06]} {[%emt 00:00:02]} Nf6 {[%clk 00:15:08]} {[%emt
00:00:02]} 2. Nf3 {[%clk 00:15:10]} {[%emt 00:00:01]} e6 {[%clk 00:15:05]}
{[%emt 00:00:10]} 3. e3 {[%clk 00:15:13]} {[%emt 00:00:01]} b6 {[%clk
00:14:42]} {[%emt 00:00:28]} 4. Bd3 {[%clk 00:15:16]} {[%emt 00:00:01]} Bb7
{[%clk 00:14:18]} {[%emt 00:00:30]} 5. O-O {[%clk 00:15:18]} {[%emt 00:00:01]}
Be7 {[%clk 00:14:15]} {[%emt 00:00:10]} 6. c4 {[%clk 00:15:21]} {[%emt
00:00:02]} O-O {[%clk 00:14:07]} {[%emt 00:00:13]} 7. Nc3 {[%clk 00:15:24]}
{[%emt 00:00:02]} d5 {[%clk 00:14:00]} {[%emt 00:00:12]} 8. cxd5 {[%clk
00:15:18]} {[%emt 00:00:12]} exd5 {[%clk 00:13:51]} {[%emt 00:00:13]} 9. Bd2
{[%clk 00:15:10]} {[%emt 00:00:12]} Na6 {[%clk 00:13:07]} {[%emt 00:00:50]} 10.
Rc1 {[%clk 00:15:13]} {[%emt 00:00:02]} c5 {[%clk 00:13:04]} {[%emt 00:00:08]}
11. Ne2 {[%clk 00:14:33]} {[%emt 00:00:45]} Ne4 {[%clk 00:11:54]} {[%emt
00:01:15]} 12. Ng3 {[%clk 00:14:26]} {[%emt 00:00:12]} f5 {[%clk 00:09:07]}
{[%emt 00:02:52]} 13. Ne5 {[%clk 00:14:17]} {[%emt 00:00:14]} cxd4 {[%clk
00:05:19]} {[%emt 00:03:52]} 14. exd4 {[%clk 00:14:19]} {[%emt 00:00:03]} f4
{[%clk 00:05:23]} {[%emt 00:00:02]} 15. Nxe4 {[%clk 00:13:45]} {[%emt
00:00:39]} dxe4 {[%clk 00:05:16]} {[%emt 00:00:12]} 16. Bc4+ {[%clk 00:13:49]}
{[%emt 00:00:01]} Kh8 {[%clk 00:05:16]} {[%emt 00:00:05]} 17. Qh5 {[%clk
00:13:19]} {[%emt 00:00:34]} Qd6 {[%clk 00:04:39]} {[%emt 00:00:44]} 18. Rc3
{[%clk 00:09:59]} {[%emt 00:03:24]} f3 {[%clk 00:02:22]} {[%emt 00:02:22]} 19.
Ra3 {[%clk 00:09:35]} {[%emt 00:00:29]} g6 {[%clk 00:00:53]} {[%emt 00:01:35]}
20. Qh6 {[%clk 00:09:15]} {[%emt 00:00:25]} b5 {[%clk 00:00:42]} {[%emt
00:00:16]} 21. Bf7 {[%clk 00:08:24]} {[%emt 00:00:55]} 1-0

[Event "MČR v rapid šachu družstev 2019"]
[Site "Teplice, Czech Republic"]
[Date "2019.09.15"]
[Round "7.18"]
[White "Sott, Pavel"]
[Black "Rolinek, Dominik"]
[Result "1-0"]
[TimeControl "15 min. + 5s"]
[WhiteElo "2179"]
[BlackElo "1999"]

1. e4 {[%clk 00:15:07]} {[%emt 00:00:03]} d6 {[%clk 00:15:10]} 2. d4 {[%clk
00:15:08]} {[%emt 00:00:04]} Nf6 {[%clk 00:15:14]} 3. Nc3 {[%clk 00:15:11]}
{[%emt 00:00:02]} e5 {[%clk 00:15:18]} 4. Nf3 {[%clk 00:15:07]} {[%emt
00:00:10]} Nbd7 {[%clk 00:15:21]} {[%emt 00:00:01]} 5. Bc4 {[%clk 00:15:01]}
{[%emt 00:00:11]} Be7 {[%clk 00:15:23]} {[%emt 00:00:03]} 6. O-O {[%clk
00:14:48]} {[%emt 00:00:18]} O-O {[%clk 00:15:21]} {[%emt 00:00:06]} 7. Re1
{[%clk 00:14:49]} {[%emt 00:00:05]} c6 {[%clk 00:15:25]} {[%emt 00:00:01]} 8.
a4 {[%clk 00:14:50]} {[%emt 00:00:04]} a5 {[%clk 00:15:29]} {[%emt 00:00:01]} 9.
h3 {[%clk 00:14:41]} {[%emt 00:00:14]} Nb6 {[%clk 00:15:32]} {[%emt 00:00:01]}
10. Bf1 {[%clk 00:14:28]} {[%emt 00:00:19]} Nfd7 {[%clk 00:13:08]} {[%emt
00:02:28]} 11. Be3 {[%clk 00:14:18]} {[%emt 00:00:16]} exd4 {[%clk 00:12:58]}
{[%emt 00:00:16]} 12. Nxd4 {[%clk 00:14:06]} {[%emt 00:00:16]} Nc5 {[%clk
00:12:53]} {[%emt 00:00:08]} 13. Qf3 {[%clk 00:12:51]} {[%emt 00:01:21]} Bf6
{[%clk 00:11:49]} {[%emt 00:01:09]} 14. b3 {[%clk 00:12:27]} {[%emt 00:00:31]}
Ne6 {[%clk 00:11:31]} {[%emt 00:00:22]} 15. Rad1 {[%clk 00:12:10]} {[%emt
00:00:22]} Nxd4 {[%clk 00:11:26]} {[%emt 00:00:10]} 16. Bxd4 {[%clk 00:12:13]}
{[%emt 00:00:03]} Bxd4 {[%clk 00:11:28]} {[%emt 00:00:02]} 17. Rxd4 {[%clk
00:12:16]} {[%emt 00:00:02]} Qc7 {[%clk 00:11:08]} {[%emt 00:00:24]} 18. Red1
{[%clk 00:12:12]} {[%emt 00:00:10]} d5 {[%clk 00:08:44]} {[%emt 00:02:28]} 19.
exd5 {[%clk 00:12:08]} {[%emt 00:00:10]} cxd5 {[%clk 00:08:40]} {[%emt
00:00:09]} 20. Nxd5 {[%clk 00:10:26]} {[%emt 00:01:47]} Nxd5 {[%clk 00:08:43]}
{[%emt 00:00:02]} 21. Rxd5 {[%clk 00:10:27]} {[%emt 00:00:04]} Qxc2 {[%clk
00:08:40]} {[%emt 00:00:08]} 22. Bc4 {[%clk 00:08:59]} {[%emt 00:01:33]} Be6
{[%clk 00:08:30]} {[%emt 00:00:15]} 23. R5d2 {[%clk 00:08:53]} {[%emt
00:00:11]} Qg6 {[%clk 00:08:27]} {[%emt 00:00:07]} 24. Qxb7 {[%clk 00:08:20]}
{[%emt 00:00:39]} h6 {[%clk 00:07:44]} {[%emt 00:00:49]} 25. Rd6 {[%clk
00:07:38]} {[%emt 00:00:46]} Rab8 {[%clk 00:05:37]} {[%emt 00:02:12]} 26. Qe7
{[%clk 00:06:28]} {[%emt 00:01:15]} Qf5 {[%clk 00:04:51]} {[%emt 00:00:45]} 27.
Rxe6 {[%clk 00:05:32]} {[%emt 00:01:08]} 1-0